fUSD/lending_fUSD_20240511
["ID","MTS","AMOUNT","RATE_DAILY","PERIOD"]
[326819837,1715439040169,-177.85033328,0.000129,2]
[326819838,1715439040179,-24900.25499562,0.000129,3]
[326819839,1715439040188,-10000.0,0.000129,2]
[326819840,1715439040197,-2974.3857154,0.000129,2]
[326819841,1715439040206,-11040.30590296,0.000129,2]
[326819842,1715439040216,-199.32461269,0.000129,2]
[326819843,1715439040225,-255.503,0.00012932,2]
[326819844,1715439040237,-972.0,0.00012932,2]
[326819845,1715439040247,-1260.0,0.00012932,2]
[326819846,1715439040256,-823.753,0.00012932,2]
[326819847,1715439040266,-217.0,0.00012932,2]
[326819848,1715439040276,-438.0,0.00012932,2]
[326819849,1715439040285,-371.654,0.00012932,2]
[326819850,1715439040295,-421.0,0.00012932,2]
[326819851,1715439040304,-1646.0,0.00012932,2]
[326819852,1715439040315,-2865.224,0.00012932,2]
[326819853,1715439040325,-1138.0,0.00012932,2]
[326819854,1715439040334,-215.0,0.00012932,2]
[326819855,1715439040343,-444.0,0.00012932,2]
[326819856,1715439040352,-206.89,0.00012932,2]
[326819857,1715439040361,-1004.33338386,0.0001299,2]
[326819858,1715439040370,-300.0,0.0001299,2]
[326819859,1715439040380,-2100.0,0.0001299,2]
[326819860,1715439040389,-4676.16532223,0.00012998,2]
[326819861,1715439040399,-1486459.22532121,0.00013,2]
[326819862,1715439040410,-188.75172265,0.00013,2]
[326819863,1715439040420,-368.44958701,0.00013,2]
[326819864,1715439040429,-1316691.57445433,0.00013,2]
[326819865,1715439041626,-28148.0630923,0.00013,2]
[326819866,1715439041637,-9709.12232404,0.00013,2]
[326819872,1715439043718,-150.0,0.00012742,2]
[326819873,1715439043733,-150.0,0.00012744,2]
[326819874,1715439043743,-128.03097649,0.00012804,2]
[326819880,1715439050007,150.0,0.00010959,2]
[326819881,1715439050029,138.29,0.00010959,2]
[326819882,1715439060616,150.78045512,0.00010959,2]
[326819883,1715439060638,89.45954488,0.00010959,2]
[326819885,1715439071351,200.2,0.00010959,2]
[326819887,1715439081846,166.83,0.00010959,2]
[326819890,1715439092441,834.2,0.00010959,2]
[326819902,1715440231851,-170.37573681,0.00011772,2]
[326819903,1715440231861,-250.0,0.0001186,2]
[326819904,1715440231870,-163.39,0.00011863,2]
[326819905,1715440231879,-230.4,0.00011866,2]
[326819906,1715440231889,-439.08,0.00011872,2]
[326819907,1715440231899,-213.75,0.00011872,2]
[326819908,1715440231911,-769.6,0.00011945,2]
[326819909,1715440231921,-170.3757368,0.00012054,2]
[326819910,1715440231930,-170.3757368,0.00012336,2]
[326819911,1715440231939,-170.3757368,0.00012618,2]
[326819912,1715440231950,-420.25,0.000127,2]
[326819913,1715440231959,-150.0,0.000127,2]
[326819914,1715440231970,-523.42,0.000127,2]
[326819915,1715440231979,-150.0,0.000127,2]
[326819916,1715440231987,-163.27,0.000127,2]
[326819917,1715440231998,-702.5,0.000127,2]
[326819918,1715440232008,-150.0,0.00012718,2]
[326819919,1715440232017,-150.0,0.00012727,2]
[326819920,1715440232026,-150.0,0.00012727,2]
[326819921,1715440232036,-150.0,0.00012738,2]
[326819922,1715440232046,-150.0,0.00012739,2]
[326819923,1715440232056,-150.0,0.00012743,2]
[326819924,1715440232064,-150.0,0.00012743,2]
[326819925,1715440232073,-150.0,0.00012746,2]
[326819926,1715440232082,-150.0,0.00012747,2]
[326819927,1715440232091,-150.0,0.0001275,2]
[326819928,1715440232100,-150.0,0.00012752,2]
[326819929,1715440232108,-150.0,0.00012753,2]
[326819930,1715440232117,-150.0,0.00012756,2]
[326819931,1715440232126,-150.0,0.00012758,2]
[326819932,1715440232134,-150.0,0.0001276,2]
[326819933,1715440232143,-150.0,0.00012761,2]
[326819934,1715440232152,-150.0,0.00012763,2]
[326819935,1715440232161,-97.88934901,0.00012763,2]
[326819936,1715440232173,-52.11065099,0.00012763,2]
[326819937,1715440232182,-150.0,0.00012768,2]
[326819939,1715440232192,-150.0,0.00012772,2]
[326819941,1715440232201,-150.0,0.00012775,2]
[326819943,1715440232210,-150.0,0.0001278,2]
[326819944,1715440232219,-150.0,0.00012782,2]
[326819945,1715440232228,-150.0,0.00012787,2]
[326819947,1715440232238,-40.37334901,0.00012787,2]
[326819949,1715440232277,-857.74670121,0.00012787,2]
[326819950,1715440232288,-812.20139622,0.00012787,2]
[326819951,1715440232297,-150.0,0.00012789,2]
[326819952,1715440232307,-150.0,0.00012792,2]
[326819953,1715440232316,-150.0,0.00012794,2]
[326819954,1715440232325,-150.0,0.00012794,2]
[326819955,1715440232335,-150.0,0.00012797,2]
[326819956,1715440232343,-150.0,0.00012798,2]
[326819957,1715440232353,-150.0,0.00012798,2]
[326819958,1715440232361,-150.0,0.00012798,2]
[326819959,1715440232370,-150.0,0.00012801,2]
[326819960,1715440232380,-150.0,0.00012802,2]
[326819962,1715440232389,-150.0,0.00012802,2]
[326819964,1715440232399,-479.98,0.00012803,2]
[326819966,1715440232409,-150.0,0.00012803,2]
[326819968,1715440232418,-21.96902351,0.00012804,2]
[326819970,1715440232427,-150.0,0.00012806,2]
[326819972,1715440232436,-150.0,0.00012807,2]
[326819974,1715440232445,-150.0,0.00012819,2]
[326820007,1715440232743,-150.0,0.00012823,2]
[326820009,1715440232754,-150.0,0.00012823,2]
[326820011,1715440232764,-206.989542,0.0001283,2]
[326820013,1715440232774,-150.0,0.0001283,2]
[326820015,1715440232784,-150.0,0.00012832,2]
[326820017,1715440232794,-150.0,0.00012833,2]
[326820019,1715440232803,-150.0,0.00012842,2]
[326820020,1715440232812,-200.0,0.00012846,2]
[326820021,1715440232822,-1000.0,0.00012846,2]
[326820022,1715440232831,-500.0,0.00012846,2]
[326820023,1715440232841,-150.0,0.00012849,2]
[326820024,1715440232850,-150.0,0.00012849,2]
[326820025,1715440232859,-150.0,0.0001285,2]
[326820026,1715440232868,-150.0,0.0001285,2]
[326820027,1715440232878,-150.0,0.00012852,2]
[326820028,1715440232887,-150.0,0.00012853,2]
[326820029,1715440232897,-150.0,0.00012857,2]
[326820030,1715440232906,-150.0,0.00012858,2]
[326820031,1715440232916,-150.0,0.00012859,2]
[326820032,1715440232925,-150.0,0.00012863,2]
[326820033,1715440232934,-150.0,0.00012864,2]
[326820034,1715440232944,-155.26912533,0.00012869,2]
[326820035,1715440232953,-150.0,0.0001287,2]
[326820036,1715440232962,-150.0,0.00012875,2]
[326820037,1715440232972,-150.0,0.00012878,2]
[326820038,1715440232982,-150.0,0.00012881,2]
[326820039,1715440232991,-150.0,0.00012883,2]
[326820040,1715440233001,-150.0,0.00012885,2]
[326820041,1715440233010,-150.0,0.00012893,2]
[326820042,1715440233019,-150.0,0.00012894,2]
[326820043,1715440233028,-134.82708391,0.00012898,2]
[326820044,1715440233040,-15.17291609,0.00012898,2]
[326820045,1715440233049,-150.0,0.00012898,2]
[326820046,1715440233059,-1000.0,0.000129,2]
[326820047,1715440233068,-1096.98322573,0.000129,2]
[326820048,1715440233080,-2657.30624144,0.000129,2]
[326820049,1715440233091,-1071.32430337,0.000129,2]
[326820050,1715440233101,-829.59060237,0.000129,2]
[326820051,1715440233139,-1153.90392012,0.000129,2]
[326820052,1715440233149,-1356.47305765,0.000129,2]
[326820053,1715440233160,-429.8742519,0.000129,2]
[326820060,1715440237878,-150.0,0.00012718,2]
[326820062,1715440237888,-150.0,0.00012722,2]
[326820064,1715440237897,-150.0,0.00012742,2]
[326820066,1715440237907,-150.0,0.00012746,2]
[326820069,1715440237916,-150.0,0.0001282,2]
[326820072,1715440237925,-150.0,0.00012829,2]
[326820075,1715440237935,-150.0,0.00012838,2]
[326820077,1715440237943,-71.01309545,0.00012843,2]
[326820081,1715440240555,-78.98690455,0.00012843,2]
[326820082,1715440240564,-262.73963813,0.00012846,2]
[326820083,1715440240574,-95.83845734,0.000129,2]
[326820090,1715440243195,-294.14994472,0.000129,2]
[326820091,1715440243214,-1014.55599536,0.000129,2]
[326820092,1715440243223,-150.0,0.000129,2]
[326820093,1715440243234,-150.0,0.000129,2]
[326820094,1715440243244,-150.0,0.000129,2]
[326820095,1715440243253,-180.4908063,0.000129,2]
[326820096,1715440243266,-284.83040661,0.000129,2]
[326820097,1715440243278,-291.01618709,0.000129,2]
[326820098,1715440243287,-2.28902607,0.000129,2]
[326820099,1715440243368,-7400.26027959,0.000129,2]
[326820100,1715440243381,-4043.23692891,0.000129,2]
[326820101,1715440243580,478.82,0.00010959,2]
[326820145,1715440246048,-1885.96568,0.000129,2]
[326820147,1715440246060,-635.89502,0.000129,2]
[326820149,1715440246072,-3561.35300949,0.000129,2]
[326820151,1715440246084,-255.41169921,0.000129,2]
[326820152,1715440260901,751.82415697,0.00011698,2]
[326820189,1715441231120,2778.61985754,0.00011694,2]
[326820190,1715441236163,-2220.24387708,0.00011766,2]
[326820191,1715441236185,-515.78588726,0.00011767,2]
[326820192,1715441236208,-304.79,0.00011794,2]
[326820193,1715441236234,-250.0,0.00011859,2]
[326820194,1715441236259,-163.01,0.0001187,2]
[326820195,1715441236280,-13848.50417378,0.0001187,2]
[326820196,1715441236304,-279.1159183,0.00011904,2]
[326820197,1715441239129,-314.47897718,0.00011904,2]
[326820200,1715441432160,-250.0,0.00011835,2]
[326820202,1715441432171,-42.97023359,0.00011886,2]
[326820205,1715441432183,-957.02976641,0.00011886,2]
[326820207,1715441432192,-172.2635,0.00012053,2]
[326820209,1715441432201,-168.49973797,0.00012153,2]
[326820210,1715441432211,-959.36378921,0.00012253,2]
[326820211,1715441432220,-1029.55391424,0.00012642,2]
[326820214,1715441432230,-163.27,0.000127,2]
[326820216,1715441432242,-160.74,0.000127,2]
[326820217,1715441432251,-523.42,0.000127,2]
[326820218,1715441432261,-420.25,0.000127,2]
[326820219,1715441432270,-150.0,0.000127,2]
[326820220,1715441432279,-150.0,0.000127,2]
[326820221,1715441432288,-150.0,0.000127,2]
[326820222,1715441432298,-163.27,0.000127,2]
[326820223,1715441432307,-351.39,0.000127,2]
[326820224,1715441432316,-150.0,0.000127,2]
[326820225,1715441432325,-150.0,0.000127,2]
[326820226,1715441432336,-523.42,0.000127,2]
[326820227,1715441432345,-420.25,0.000127,2]
[326820228,1715441432355,-150.0,0.000127,2]
[326820229,1715441432365,-150.0,0.000127,2]
[326820230,1715441432377,-351.39,0.000127,2]
[326820231,1715441432387,-150.0,0.000127,2]
[326820232,1715441432396,-163.27,0.000127,2]
[326820233,1715441432411,-150.0,0.000127,2]
[326820234,1715441432422,-523.42,0.000127,2]
[326820235,1715441432432,-163.27,0.000127,2]
[326820236,1715441432442,-420.25,0.000127,2]
[326820237,1715441432451,-305.86,0.000127,2]
[326820238,1715441432462,-150.0,0.000127,2]
[326820239,1715441432472,-150.0,0.000127,2]
[326820240,1715441432481,-701.25,0.000127,2]
[326820241,1715441432494,-418.89,0.000127,2]
[326820242,1715441432503,-36.50214958,0.000127,2]
[326820243,1715441432763,-486.91785042,0.000127,2]
[326820244,1715441432772,-150.0,0.000127,2]
[326820245,1715441432784,-161.21173712,0.000127,2]
[326820246,1715441432797,-2.05826288,0.000127,2]
[326820247,1715441432806,-523.42,0.000127,2]
[326820248,1715441432815,-163.27,0.000127,2]
[326820249,1715441432824,-150.0,0.00012727,2]
[326820250,1715441432834,-3499.0404575,0.00012727,2]
[326820251,1715441432843,-150.0,0.00012734,2]
[326820252,1715441432852,-150.0,0.00012745,2]
[326820253,1715441432862,-150.0,0.00012748,2]
[326820254,1715441432872,-150.0,0.00012754,2]
[326820255,1715441432882,-150.0,0.00012759,2]
[326820256,1715441432891,-150.0,0.0001276,2]
[326820257,1715441432901,-150.0,0.00012761,2]
[326820258,1715441432910,-150.0,0.00012775,2]
[326820259,1715441432919,-150.0,0.00012791,2]
[326820260,1715441432928,-2883.84547325,0.000128,2]
[326820261,1715441434614,-2204.71112675,0.000128,2]
[326820262,1715441434624,-1391.69487325,0.000128,2]
[326820263,1715441434636,-6454.86451973,0.000128,2]
[326820264,1715441434647,-334.50747262,0.000128,2]
[326820265,1715441434659,-2101.7638344,0.000128,2]
[326820266,1715441434669,-2046.9704,0.000128,2]
[326820267,1715441434678,-150.0,0.000128,2]
[326820268,1715441434688,-523.42,0.000128,2]
[326820269,1715441434697,-150.0,0.000128,2]
[326820270,1715441434706,-420.25,0.000128,2]
[326820271,1715441434715,-163.27,0.000128,2]
[326820272,1715441434725,-150.0,0.000128,2]
[326820273,1715441434736,-351.39,0.000128,2]
[326820274,1715441434745,-150.0,0.00012804,2]
[326820275,1715441434755,-150.0,0.00012812,2]
[326820276,1715441434763,-150.0,0.00012819,2]
[326820277,1715441434773,-150.0,0.00012821,2]
[326820278,1715441434782,-150.0,0.00012833,2]
[326820279,1715441434792,-200.0,0.00012846,2]
[326820280,1715441434801,-1000.0,0.00012846,2]
[326820281,1715441434811,-500.0,0.00012846,2]
[326820282,1715441434821,-150.0,0.00012852,2]
[326820283,1715441434830,-150.0,0.00012868,2]
[326820284,1715441434840,-150.0,0.00012887,2]
[326820285,1715441434849,-269.03199688,0.00012898,2]
[326820286,1715441434859,-709.02554464,0.00012898,2]
[326820287,1715441434868,-1750.0,0.00012898,2]
[326820288,1715441434878,-158.05804344,0.00012898,2]
[326820289,1715441434888,-18396.68014826,0.00012898,2]
[326820290,1715441434897,-318.74671446,0.00012898,2]
[326820292,1715441434907,-324.42510247,0.00012898,2]
[326820295,1715441434916,-215.88316688,0.00012898,2]
[326820298,1715441434926,-1153.90392012,0.00012898,2]
[326820301,1715441434935,-661.6241208,0.00012898,2]
[326820304,1715441434945,-533.05127413,0.00012898,2]
[326820307,1715441434955,-261.77595692,0.00012899,2]
[326820309,1715441434965,-336.05422805,0.00012899,2]
[326820311,1715441434975,-596.90903168,0.00012899,2]
[326820313,1715441434986,-895.9951,0.000129,2]
[326820315,1715441434996,-162.52774245,0.000129,2]
[326820317,1715441435006,-9379.8288,0.000129,2]
[326820318,1715441435016,-100000.0,0.000129,2]
[326820320,1715441435030,-178.63087483,0.000129,2]
[326820322,1715441435040,-807.56,0.000129,2]
[326820324,1715441435049,-168.49973797,0.000129,2]
[326820326,1715441435058,-2176.28936,0.000129,2]
[326820328,1715441435068,-158.1095261,0.000129,2]
[326820331,1715441435078,-15916.23385444,0.000129,2]
[326820333,1715441435087,-353.87208814,0.000129,2]
[326820334,1715441435097,-7500.0,0.000129,2]
[326820337,1715441435106,-173.1639208,0.000129,2]
[326820339,1715441435115,-2970.93404009,0.000129,2]
[326820340,1715441435124,-171.03103542,0.000129,2]
[326820343,1715441435134,-150.0,0.00012903,2]
[326820345,1715441435144,-150.0,0.00012907,2]
[326820347,1715441435153,-150.0,0.00012917,2]
[326820349,1715441435163,-150.0,0.0001292,2]
[326820350,1715441435172,-150.0,0.00012928,2]
[326820353,1715441435181,-150.0,0.00012932,2]
[326820355,1715441435191,-212.0,0.00012934,2]
[326820357,1715441435200,-296.178,0.00012934,2]
[326820359,1715441435210,-994.708,0.00012934,2]
[326820361,1715441435220,-1260.0,0.00012934,2]
[326820362,1715441435230,-318.366,0.00012934,2]
[326820363,1715441435241,-438.0,0.00012934,2]
[326820364,1715441435251,-421.0,0.00012934,2]
[326820365,1715441435261,-150.0,0.00012942,2]
[326820366,1715441435271,-150.0,0.00012946,2]
[326820367,1715441435280,-150.0,0.0001296,2]
[326820368,1715441435289,-150.0,0.00012965,2]
[326820369,1715441435299,-150.0,0.00012967,2]
[326820370,1715441435308,-150.0,0.00012979,2]
[326820371,1715441435318,-4589.16668298,0.00012986,2]
[326820372,1715441435327,-300.0,0.00012986,2]
[326820373,1715441435337,-2100.0,0.00012988,2]
[326820374,1715441435347,-163.040101,0.00012991,2]
[326820375,1715441435356,-163.040101,0.00012991,2]
[326820376,1715441435367,-163.040101,0.00012991,2]
[326820377,1715441435376,-163.040101,0.00012991,2]
[326820378,1715441435385,-163.040101,0.00012991,2]
[326820379,1715441435395,-1026.0133001,0.00012991,2]
[326820380,1715441435404,-1324.264113,0.00012991,2]
[326820381,1715441435414,-1062.5642115,0.00012991,2]
[326820382,1715441435424,-800.8643099,0.00012991,2]
[326820383,1715441435433,-539.1644084,0.00012991,2]
[326820384,1715441435443,-277.4645068,0.00012991,2]
[326820385,1715441435452,-701.1441223,0.00012991,2]
[326820386,1715441435461,-643.5966917,0.00012991,2]
[326820387,1715441435471,-586.0492611,0.00012991,2]
[326820388,1715441435480,-528.5018305,0.00012991,2]
[326820389,1715441435493,-470.9543999,0.00012991,2]
[326820390,1715441435503,-15242.4858387,0.00012991,2]
[326820391,1715441435512,-13991.4364924,0.00012991,2]
[326820392,1715441435522,-12740.3871462,0.00012991,2]
[326820393,1715441435532,-11489.3377999,0.00012991,2]
[326820394,1715441435543,-10238.2884536,0.00012991,2]
[326820395,1715441435561,-150.2764937,0.00012991,2]
[326820396,1715441435571,-150.2764937,0.00012991,2]
[326820397,1715441435581,-150.2764937,0.00012991,2]
[326820398,1715441435590,-150.2764937,0.00012991,2]
[326820399,1715441435601,-150.2764937,0.00012991,2]
[326820400,1715441435610,-150.0,0.00012994,2]
[326820401,1715441435620,-488.15026758,0.00012998,2]
[326820402,1715441435630,-377.35579036,0.00012998,2]
[326820403,1715441435640,-155.0,0.00012998,2]
[326820404,1715441435650,-155.0,0.00012998,2]
[326820405,1715441435660,-150.0,0.00012998,2]
[326820406,1715441435670,-207.58542229,0.00012999,2]
[326820407,1715441435680,-2170.17834088,0.00012999,2]
[326820408,1715441435690,-288580.50078058,0.00013,2]
[326820409,1715441435704,-452.75892829,0.00013,2]
[326820410,1715441435715,-1099.33301702,0.00013,2]
[326820411,1715441435727,-7031.59422298,0.00013,2]
[326820427,1715441439430,-247.75883199,0.0001299,2]
[326820428,1715441439440,-1085.08917044,0.00012999,2]
[326820429,1715441439450,-11146.95279898,0.00013,2]
[326820430,1715441439462,-175538.88790129,0.00013,2]
[326820431,1715441439474,-3460.89888,0.00013,2]
[326820432,1715441439485,-634.25,0.00013,2]
[326820433,1715441439763,-306.154,0.00013,2]
[326820460,1715441440724,-371.23555112,0.000129,2]
[326820461,1715441440735,-113.16392044,0.00012934,2]
[326820462,1715441441670,-1288.86408324,0.00012934,2]
[326820463,1715441441686,-243.97199632,0.00012934,2]
[326820464,1715441441698,-1770.00627113,0.00013,2]
[326820465,1715441441711,-1174.24770424,0.00013,2]
[326820466,1715441441729,-4772.495,0.00013,2]
[326820467,1715441441745,-25044.72199682,0.00013,2]
[326820468,1715441441759,-1867.9857821,0.00013,2]
[326820469,1715441441772,-874.40717284,0.00013,2]
[326820471,1715441441789,-15372.49999999,0.00013,2]
[326820473,1715441441802,-2992.5896,0.00013,2]
[326820763,1715441444503,-365.36565537,0.00012999,2]
[326820765,1715441444514,-230.45208504,0.00012999,2]
[326820767,1715441444524,-539.81811385,0.00012999,2]
[326820801,1715441444840,-2.72647137,0.00012999,2]
[326820803,1715441444849,-737.32870041,0.00013,2]
[326820844,1715441446277,-564.032,0.00012999,2]
[326820845,1715441446286,-5639.66347629,0.00013,2]
[326820863,1715441446518,-414.36,0.00013,2]
[326820865,1715441446530,-1014.59117262,0.00013,2]
[326820867,1715441446542,-1511.19411265,0.00013,2]
[326820868,1715441446554,-3062.05,0.00013,2]
[326820869,1715441446566,-3675.78,0.00013,2]
[326820870,1715441446578,-453.1142135,0.00013,2]
[326820871,1715441446590,-499.00216356,0.00013,2]
[326820876,1715441952349,170.67,9.715e-05,2]
[326820877,1715442092626,-1000.0,0.00012106,2]
[326820878,1715442585210,750.52330383,0.00011653,2]
[326820879,1715442603353,150.0,0.00011653,2]
[326820880,1715442603531,150.0,0.00011653,2]
[326820881,1715442603719,150.0,0.00011653,2]
[326820882,1715442604135,150.0,0.00011653,2]
[326820883,1715442604387,150.0,0.00011653,2]
[326820884,1715442604529,150.0,0.00011653,2]
[326820885,1715442604709,150.0,0.00011653,2]
[326820886,1715442604904,150.0,0.00011653,2]
[326820887,1715442605091,164.29228075,0.00011653,2]
[326820893,1715442632297,-202.18,0.00012015,2]
[326820894,1715442632306,-250.0,0.00012029,2]
[326820895,1715442632315,-250.0,0.00012048,2]
[326820896,1715442632325,-163.26,0.00012078,2]
[326820897,1715442632334,-155.68,0.0001212,2]
[326820898,1715442632344,-126.26288345,0.0001274,2]
[326820899,1715442632368,-373.1648316,0.0001274,2]
[326820900,1715442632379,-516.65827596,0.0001274,2]
[326820901,1715442632388,-1147.62865589,0.0001274,2]
[326820902,1715442632398,-155.68,0.00012751,2]
[326820903,1715442632408,-599.9348,0.0001278,2]
[326820904,1715442632417,-554.21103815,0.0001278,2]
[326820986,1715442638339,-6591.41406185,0.0001278,2]
[326820987,1715442638348,-640.19451164,0.00012794,2]
[326820988,1715442638357,-1000.0,0.00012799,2]
[326820989,1715442638367,-42363.8709,0.000128,2]
[326820990,1715442638376,-1947.94820855,0.000128,2]
[326820991,1715442638388,-500.0,0.00012834,2]
[326820992,1715442638397,-200.0,0.00012863,2]
[326820993,1715442638406,-176.97149164,0.0001287,2]
[326820994,1715442638420,-168.7533936,0.0001287,2]
[326820995,1715442638429,-357.10087053,0.0001287,2]
[326820996,1715442638439,-173.16392079,0.0001287,2]
[326820997,1715442638447,-121419.47054269,0.0001288,2]
[326820998,1715442638459,-2275.40699626,0.0001288,2]
[326820999,1715442638468,-357.1008705,0.0001288,2]
[326821000,1715442638477,-357.1008705,0.0001289,2]
[326821001,1715442638486,-200.0,0.00012896,2]
[326821002,1715442638495,-1000.0,0.00012896,2]
[326821003,1715442638504,-500.0,0.00012896,2]
[326821004,1715442638513,-10765.01918295,0.00012896,2]
[326821005,1715442638524,-358.0379,0.000129,2]
[326821006,1715442638533,-467.652,0.000129,2]
[326821007,1715442638542,-10317.1094748,0.000129,2]
[326821008,1715442638551,-542.2271,0.000129,2]
[326821009,1715442638560,-201.02564818,0.000129,2]
[326821010,1715442638569,-201.02564815,0.000129,2]
[326821011,1715442638578,-201.02564815,0.000129,2]
[326821012,1715442638587,-201.02564815,0.000129,2]
[326821013,1715442638597,-201.02564815,0.000129,2]
[326821014,1715442638606,-201.02564815,0.000129,2]
[326821015,1715442638615,-201.02564815,0.000129,2]
[326821016,1715442638624,-201.02564815,0.000129,2]
[326821017,1715442638634,-189.07369324,0.000129,2]
[326821018,1715442638643,-357.1008705,0.000129,2]
[326821019,1715442638652,-293.38048445,0.000129,2]
[326821020,1715442638661,-280.34794407,0.00012936,2]
[326821022,1715442638681,-46.17605593,0.00012936,2]
[326821024,1715442638690,-340.277,0.00012936,2]
[326821026,1715442638699,-526.0,0.0001295,2]
[326821028,1715442638708,-28405.94694407,0.0001295,3]
[326821040,1715442639147,-338577.83235795,0.0001295,3]
[326821041,1715442639338,-263.8,0.0001295,3]
[326821042,1715442639350,-464.51322832,0.0001295,3]
[326821054,1715442640439,-803.8263608,0.0001295,3]
[326821055,1715442640553,-244899.52458216,0.0001295,3]
[326821056,1715442640565,-589.46160353,0.0001295,3]
[326821057,1715442640892,-1854.33757839,0.0001295,3]
[326821058,1715442642258,-1024.10500002,0.0001295,3]
[326821059,1715442642376,-797.42500018,0.0001295,3]
[326821060,1715442642473,-122629.78445707,0.0001295,3]
[326821105,1715442643519,-31139.08898007,0.0001295,3]
[326821106,1715442643674,-3226.3,0.0001295,3]
[326821107,1715442643768,-388.89860614,0.0001295,3]
[326821113,1715442646445,-273.99772355,0.0001295,3]
[326821114,1715442646504,-3210.5,0.0001295,3]
[326821115,1715442649595,969.0763399,0.00011653,2]
[326821116,1715442660814,44772.73328275,0.00011653,2]
[326821117,1715442661201,752.97083876,0.00011654,2]
[326821118,1715442718049,969.0763399,0.00011654,2]
[326821119,1715442735452,295.93128124,0.00011654,2]
[326821124,1715443084169,664.85,0.00011642,2]
[326821125,1715443103214,286.12,0.00011642,2]
[326821126,1715443169520,-150.0,0.00011875,2]
[326821127,1715443169543,-250.0,0.00011893,2]
[326821128,1715443169564,-152.49,0.00011964,2]
[326821129,1715443169586,-166.29,0.00012003,2]
[326821130,1715443169607,-152.49,0.00012016,2]
[326821131,1715443169629,-150.0,0.00012053,2]
[326821132,1715443169651,-2978.73,0.00012054,2]
[326821133,1715443170390,-4000.0,0.00012054,2]
[326821134,1715443171564,-4000.0,0.00012054,2]
[326821135,1715443171665,-4000.0,0.00012054,2]
[326821136,1715443172852,-4000.0,0.00012054,2]
[326821137,1715443174069,-4000.0,0.00012054,2]
[326821138,1715443184901,-921.27,0.00012054,2]
[326821139,1715443184923,-152.49,0.00012068,2]
[326821140,1715443184943,-152.49,0.0001212,2]
[326821141,1715443184964,-499.99,0.00012172,2]
[326821142,1715443184985,-152.49,0.00012172,2]
[326821143,1715443185012,-152.49,0.00012224,2]
[326821144,1715443185037,-152.49,0.00012276,2]
[326821145,1715443185059,-143.6915,0.00012302,2]
[326821148,1715443205373,944.72501751,0.00011642,2]
[326821149,1715443206792,2799.46840609,0.00011642,2]
[326821150,1715443211514,1250.0,0.00011,2]
[326821151,1715443283808,944.72501751,0.00011,2]
[326821152,1715443297789,607.32934885,0.00011,2]
[326821153,1715443399418,-4000.0,0.00011761,2]
[326821154,1715443400056,-4000.0,0.00011761,2]
[326821155,1715443400696,-4000.0,0.00011761,2]
[326821156,1715443413657,-250.6984,0.00011761,2]
[326821157,1715443413682,-829.22,0.00011838,2]
[326821158,1715443413705,-250.0,0.00011839,2]
[326821159,1715443413727,-800.0,0.00011861,2]
[326821160,1715443413749,-1870.0816,0.00011875,2]
[326821161,1715443414309,-3469.4184,0.00011875,2]
[326821162,1715443414331,-530.5816,0.00011885,2]
[326821163,1715443415292,-1116.8984,0.00011885,2]
[326821164,1715443415315,-1150.97720837,0.00012302,2]